Workbook

Sheet Multiple Choice Questions
B1: Type your multiple choice answers to Q1 - Q09 in the boxes in column B. When you finish, switch to the other worksheet and do the practical Excel question! | C1: Answer
A3: Q0 | B3: Example. If I forget to submit my worksheet in the mid-session quiz: | C3: A
A4: (A) | B4: My test answers will be lost and unable to be retrieved
A5: (B) | B5: I will be able to retrieve the worksheet after the exam, using magic
A6: (C) | B6: I will be fined more than $205 by the NSW police
A7: (D) | B7: The lecturer will automatically give me full marks
B8: In the test, you have no Z-drive access. You must submit your answers! You can submit them as many times as you like, so treat Submit like Save.
A9: Q1 | B9: Using the fill handle on a cell containing a formula
A10: (A) | B10: cannot complete a sequence of dates in a column.
A11: (B) | B11: changes the background color of the selected cells to yellow.
A12: (C) | B12: copies the formula in the active cell to other cells and adapts it based upon the type of cell references in the original formula.
A13: (D) | B13: has two or more sub-commands related to the command.
A15: Q2 | B15: A mixed cell reference
A16: (A) | B16: occurs when a formula directly or indirectly refers to the cell containing the formula.
A17: (B) | B17: causes a potential error.
A18: (C) | B18: contains absolute or relative cell references, but not both.
A19: (D) | B19: contains an absolute row and a relative column reference, or vice-versa.
A21: Q3 | B21: The VLOOKUP function
A22: (A) | B22: is the argument in a function that describes to which column to return a value.
A23: (B) | B23: is a range containing a lookup table.
A24: (C) | B24: is a reference to a cell containing a value to look up.
A25: (D) | B25: looks up a value and returns a related result from the lookup table
A27: Q4 | B27: A clustered column chart
A28: (A) | B28: groups or clusters similar data in columns to compare values across categories.
A29: (B) | B29: places stacks of data in segments on top of each other in one column, with each category in the data series represented by a different color.
A30: (C) | B30: places (stacks) data in one column per category, with each column having the same height of 100%.
A31: (D) | B31: is a key that identifies the color, gradient, picture, texture, or pattern fill assigned to each data series in a chart.
A33: Q5 | B33: To Freeze Columns and/or rows
A34: (A) | B34: first indicate where data starts on a new printed page.
A35: (B) | B35: use the View Tab, Window Group, and click Freeze Panes.
A36: (C) | B36: scroll through a worksheet and click on the Freeze button.
A37: (D) | B37: adjust settings to control how the worksheet will print.
A39: Q6 | B39: Which of the following is NOT a concern when adding subcategories to a PivotTable?
A40: (A) | B40: The number of rows increases.
A41: (B) | B41: It improves the readability of the PivotTable.
A42: (C) | B42: It may add unnecessary groupings.
A43: (D) | B43: The data becomes overwhelming with too many details.
A45: Q7 | B45: Which What-If Analysis tool would be best at comparing the combined effects of various interest rates and down payments?
A46: (A) | B46: Scenario Manager
A47: (B) | B47: Goal Seek
A48: (C) | B48: One-variable data table
A49: (D) | B49: Two-variable data table
A51: Q8 | B51: Which What-If Analysis tool would be best at determining how much you can borrow for a car loan while paying only $350 a month?
A52: (A) | B52: Scenario Manager
A53: (B) | B53: Solver
A54: (C) | B54: Data Table
A55: (D) | B55: Goal Seek
A57: Q9 | B57: To group two nonadjacent worksheets:
A58: (A) | B58: click first tab, hold Shift and then click the last tab.
A59: (B) | B59: click first tab, hold Ctrl and then click the last tab.
A60: (C) | B60: right-click a worksheet tab, then select Select Two Sheets
A61: (D) | B61: right-click a worksheet tab, than select Group
B69: To check your answers, select this cell, and type Shift+Ctrl+M , then go to the next worksheet.

Sheet Australia
B1: Area (km2) | C1: Population | D1: Population Density | E1: Highest Point (m) | F1: Rank of Highest Point | G1: Gross State Product ($bn) | H1: Product per Capita | I1: Rank of Product Per Capita | J1: Population of capital | K1: Proportion in Capital (%) | L1: Area of capital (km2) | M1: Capital Pop. Density
A2: NSW | B2: 809444 | C2: 7272800 | D2: =C2/B2 -> 8.984932867 | E2: 2228 | F2: =RANK(E2,HighPoints) -> 1 | G2: 419.9 | H2: =G2/C2*1000*1000000 -> 57735.67264 | I2: =RANK(H2,ProdPerCap) -> 4 | J2: 4336374 | K2: =J2/C2*100 -> 59.62454625 | L2: 12145 | M2: =J2/L2 -> 357.0501441
A3: ACT | B3: 2358 | C3: 373100 | D3: =C3/B3 -> 158.2273113 | E3: 1912 | F3: 3 | G3: 25.9 | H3: =G3/C3*1000*1000000 -> 69418.38649 | I3: 3 | J3: 367752 | K3: =J3/C3*100 -> 98.56660413 | L3: 814 | M3: =J3/L3 -> 451.7837838
A4: VIC | B4: 237629 | C4: 5603100 | D4: 23.57919278 | E4: 1986 | F4: 2 | G4: 305.6 | H4: 54541.2361 | I4: 6 | J4: 4169103 | K4: 74.40707822 | L4: 8806 | M4: 473.4389053
A5: QLD | B5: 1852642 | C5: 4537700 | D5: 2.449312927 | E5: 1622 | F5: 4 | G5: 252 | H5: 55534.74227 | I5: 5 | J5: 2146577 | K5: 47.30539701 | L5: 5950 | M5: 360.7692437
A6: SA | B6: 1043514 | C6: 1650600 | D6: 1.581770824 | E6: 1435 | F6: 7 | G6: 86.3 | H6: 52284.01793 | I6: 7 | J6: 1262940 | K6: 76.51399491 | L6: 1827 | M6: 691.2643678
A7: WA | B7: 2645615 | C7: 2451400 | D7: 0.9265898477 | E7: 1249 | F7: 8 | G7: 236.3 | H7: 96393.89736 | I7: 1 | J7: 1832114 | K7: 74.73745615 | L7: 5386 | M7: 340.1622726
A8: TAS | B8: 90758 | C8: 512100 | D8: 5.642477798 | E8: 1617 | F8: 5 | G8: 22.3 | H8: 43546.18239 | I8: 8 | J8: 211656 | K8: 41.33099004 | L8: 1696 | M8: 124.7971698
A9: NT | B9: 1420970 | C9: 233300 | D9: 0.164183621 | E9: 1531 | F9: 6 | G9: 16.3 | H9: 69867.12387 | I9: 2 | J9: 129100 | K9: 55.33647664 | L9: 112 | M9: 1152.678571
A10: Australia | B10: =SUM(B2:B9) -> 8102930 | C10: =SUM(C2:C9) -> 22634100 | D10: 2.793322909 | E10: =MAX(HighPoints) -> 2228 | F10: 1 | G10: =SUM(G2:G9) -> 1364.6 | H10: 60289.56309
A11: Instructions
A12: 1. Insert a new column to the right of Product per Capita, called "Rank of Product per Capita".
A13: 2. Insert another new column to the right of Highest Point (m), called "Rank of Highest Point".
A14: 3. Add a summary row, with row header "Australia", and give it an upper border.
A15: 4. Set the background of the column headers to Orange, Accent 6, Lighter 60%, and bold them.
A16: 5. Set the background of the row headers to Dark Blue, Text 2, Lighter 80%, and bold them.
A17: 6. Set the height of row 1 to 45, and wrap and centre the column headers.
A18: 7. Calculate the values for columns D (1 dec. pl.), and H, K, and M (all 0 dec. pl.) (use fill handle).
A19: 8. Define a name for the range E2:E9 (say HighPoints), and for the range H2:H9 (say ProdPerCap).
A20: 9. Calculate the ranks for columns F and I using the =RANK(cell, rangename) function.
A21: 10. Calculate totals for columns B , C, and G, national population density for col. D, highest high point for column E, then rank of highest high point for col. F, and national product per capita for col. H. No national figures need be calculated for columns I to M.
A22: 11. Add a pie chart showing Gross State Product by State, with a suitable title, and showing the data values as percentages.
A23: 12. Record and test a macro to clear out the numbers in rows 2-9 of the Population, Population of Capital, and Gross State Product ($bn) columns (as these would all change with time) and delete the pie chart. This will leave lots of #DIV/0! errors - don't worry about them. Hint: record and test the macro on a copy of your worksheet.
A24: Note: In the actual mid-session test, you have no Z-drive access. You must submit your answers! You can submit them as many times as you like, so treat Submit like Save.

Sheet Australia (2)
B1: Area (km2) | C1: Population | D1: Population Density | E1: Highest Point (m) | F1: Rank of Highest Point | G1: Gross State Product ($bn) | H1: Product per Capita | I1: Rank of Product Per Capita | J1: Population of capital | K1: Proportion in Capital (%) | L1: Area of capital (km2) | M1: Capital Pop. Density
A2: NSW | B2: 809444 | D2: =C2/B2 -> 0 | E2: 2228 | F2: =RANK(E2,HighPoints) -> 1 | H2: =G2/C2*1000*1000000 ->  | I2: =RANK(H2,ProdPerCap) ->  | K2: =J2/C2*100 ->  | L2: 12145 | M2: =J2/L2 -> 0
A3: ACT | B3: 2358 | D3: =C3/B3 -> 0 | E3: 1912 | F3: 3 | H3: =G3/C3*1000*1000000 ->  | K3: =J3/C3*100 ->  | L3: 814 | M3: =J3/L3 -> 0
A4: VIC | B4: 237629 | D4: 0 | E4: 1986 | F4: 2 | L4: 8806 | M4: 0
A5: QLD | B5: 1852642 | D5: 0 | E5: 1622 | F5: 4 | L5: 5950 | M5: 0
A6: SA | B6: 1043514 | D6: 0 | E6: 1435 | F6: 7 | L6: 1827 | M6: 0
A7: WA | B7: 2645615 | D7: 0 | E7: 1249 | F7: 8 | L7: 5386 | M7: 0
A8: TAS | B8: 90758 | D8: 0 | E8: 1617 | F8: 5 | L8: 1696 | M8: 0
A9: NT | B9: 1420970 | D9: 0 | E9: 1531 | F9: 6 | L9: 112 | M9: 0
A10: Australia | B10: =SUM(B2:B9) -> 8102930 | C10: =SUM(C2:C9) -> 0 | D10: 0 | E10: =MAX(HighPoints) -> 2228 | F10: 1 | G10: =SUM(G2:G9) -> 0
A11: Instructions
A12: 1. Insert a new column to the right of Product per Capita, called "Rank of Product per Capita".
A13: 2. Insert another new column to the right of Highest Point (m), called "Rank of Highest Point".
A14: 3. Add a summary row, with row header "Australia", and give it an upper border.
A15: 4. Set the background of the column headers to Orange, Accent 6, Lighter 60%, and bold them.
A16: 5. Set the background of the row headers to Dark Blue, Text 2, Lighter 80%, and bold them.
A17: 6. Set the height of row 1 to 45, and wrap and centre the column headers.
A18: 7. Calculate the values for columns D (1 dec. pl.), and H, K, and M (all 0 dec. pl.) (use fill handle).
A19: 8. Define a name for the range E2:E9 (say HighPoints), and for the range H2:H9 (say ProdPerCap).
A20: 9. Calculate the ranks for columns F and I using the =RANK(cell, rangename) function.
A21: 10. Calculate totals for columns B , C, and G, national population density for col. D, highest high point for column E, then rank of highest high point for col. F, and national product per capita for col. H. No national figures need be calculated for columns I to M.
A22: 11. Add a pie chart showing Gross State Product by State, with a suitable title, and showing the data values as percentages.
A23: 12. Record and test a macro to clear out the numbers in rows 2-9 of the Population, Population of Capital, and Gross State Product ($bn) columns (as these would all change with time) and delete the pie chart. This will leave lots of #DIV/0! errors - don't worry about them. Hint: record and test the macro on a copy of your worksheet.
A24: Note: In the actual mid-session test, you have no Z-drive access. You must submit your answers! You can submit them as many times as you like, so treat Submit like Save.

Sheet Australia (3)
B1: Area (km2) | C1: Population | D1: Population Density | E1: Highest Point (m) | F1: Rank of Highest Point | G1: Gross State Product ($bn) | H1: Product per Capita | I1: Rank of Product Per Capita | J1: Population of capital | K1: Proportion in Capital (%) | L1: Area of capital (km2) | M1: Capital Pop. Density
A2: NSW | B2: 809444 | D2: =C2/B2 -> 0 | E2: 2228 | F2: =RANK(E2,HighPoints) -> 1 | H2: =G2/C2*1000*1000000 ->  | I2: =RANK(H2,ProdPerCap) ->  | K2: =J2/C2*100 ->  | L2: 12145 | M2: =J2/L2 -> 0
A3: ACT | B3: 2358 | D3: =C3/B3 -> 0 | E3: 1912 | F3: 3 | H3: =G3/C3*1000*1000000 ->  | K3: =J3/C3*100 ->  | L3: 814 | M3: =J3/L3 -> 0
A4: VIC | B4: 237629 | D4: 0 | E4: 1986 | F4: 2 | L4: 8806 | M4: 0
A5: QLD | B5: 1852642 | D5: 0 | E5: 1622 | F5: 4 | L5: 5950 | M5: 0
A6: SA | B6: 1043514 | D6: 0 | E6: 1435 | F6: 7 | L6: 1827 | M6: 0
A7: WA | B7: 2645615 | D7: 0 | E7: 1249 | F7: 8 | L7: 5386 | M7: 0
A8: TAS | B8: 90758 | D8: 0 | E8: 1617 | F8: 5 | L8: 1696 | M8: 0
A9: NT | B9: 1420970 | D9: 0 | E9: 1531 | F9: 6 | L9: 112 | M9: 0
A10: Australia | B10: =SUM(B2:B9) -> 8102930 | C10: =SUM(C2:C9) -> 0 | D10: 0 | E10: =MAX(HighPoints) -> 2228 | F10: 1 | G10: =SUM(G2:G9) -> 0
A11: Instructions
A12: 1. Insert a new column to the right of Product per Capita, called "Rank of Product per Capita".
A13: 2. Insert another new column to the right of Highest Point (m), called "Rank of Highest Point".
A14: 3. Add a summary row, with row header "Australia", and give it an upper border.
A15: 4. Set the background of the column headers to Orange, Accent 6, Lighter 60%, and bold them.
A16: 5. Set the background of the row headers to Dark Blue, Text 2, Lighter 80%, and bold them.
A17: 6. Set the height of row 1 to 45, and wrap and centre the column headers.
A18: 7. Calculate the values for columns D (1 dec. pl.), and H, K, and M (all 0 dec. pl.) (use fill handle).
A19: 8. Define a name for the range E2:E9 (say HighPoints), and for the range H2:H9 (say ProdPerCap).
A20: 9. Calculate the ranks for columns F and I using the =RANK(cell, rangename) function.
A21: 10. Calculate totals for columns B , C, and G, national population density for col. D, highest high point for column E, then rank of highest high point for col. F, and national product per capita for col. H. No national figures need be calculated for columns I to M.
A22: 11. Add a pie chart showing Gross State Product by State, with a suitable title, and showing the data values as percentages.
A23: 12. Record and test a macro to clear out the numbers in rows 2-9 of the Population, Population of Capital, and Gross State Product ($bn) columns (as these would all change with time) and delete the pie chart. This will leave lots of #DIV/0! errors - don't worry about them. Hint: record and test the macro on a copy of your worksheet.
A24: Note: In the actual mid-session test, you have no Z-drive access. You must submit your answers! You can submit them as many times as you like, so treat Submit like Save.
